fUSD/lending_fUSD_20260627
["ID","MTS","AMOUNT","RATE_DAILY","PERIOD"]
[426514151,1782507041000,-265.31,0.0003546,69]
[426514179,1782507041000,-500.0,0.00035616,7]
[426514159,1782507041000,-796.6,0.00035557,7]
[426514161,1782507041000,-626.56,0.00035558,7]
[426514131,1782507041000,-526.12,0.00035454,2]
[426514132,1782507041000,-500.0,0.00035454,120]
[426514123,1782507041000,-514.3789797,0.00035454,120]
[426514129,1782507041000,-500.0,0.00035454,120]
[426514133,1782507041000,-500.0,0.00035454,7]
[426514120,1782507041000,-500.0,0.00035454,120]
[426514125,1782507041000,-500.0,0.00035454,120]
[426514126,1782507041000,-500.0,0.00035454,10]
[426514130,1782507041000,-500.0,0.00035454,120]
[426514124,1782507041000,-500.0,0.00035454,120]
[426514128,1782507041000,-500.0,0.00035454,120]
[426514127,1782507041000,-500.0,0.00035454,7]
[426514134,1782507041000,-500.0,0.00035454,120]
[426514122,1782507041000,-515.95840323,0.00035454,2]
[426514140,1782507041000,-100000.0,0.00035455,30]
[426514139,1782507041000,-202.48364959,0.00035455,2]
[426514146,1782507041000,-500.0,0.00035458,120]
[426514144,1782507041000,-500.0,0.00035458,120]
[426514143,1782507041000,-502.0,0.00035457,3]
[426514147,1782507041000,-500.0,0.00035458,120]
[426514145,1782507041000,-500.0,0.00035458,10]
[426514176,1782507041000,-500.0,0.00035616,7]
[426514135,1782507041000,-500.0,0.00035454,120]
[426514141,1782507041000,-100000.0,0.00035455,90]
[426514138,1782507041000,-500.0,0.00035454,7]
[426514136,1782507041000,-500.0,0.00035454,120]
[426514142,1782507041000,-100000.0,0.00035455,60]
[426514137,1782507041000,-1228.24,0.00035454,7]
[426514232,1782507042000,-230.95,0.00035983,7]
[426514222,1782507042000,-4600.0,0.000359,13]
[426514219,1782507042000,-384.54193532,0.000359,120]
[426514216,1782507042000,-526.12,0.00035898,2]
[426514218,1782507042000,-594.89352566,0.000359,120]
[426514220,1782507042000,-161.07424051,0.000359,120]
[426514215,1782507042000,-500.0,0.00035898,120]
[426514214,1782507042000,-500.0,0.00035898,7]
[426514213,1782507042000,-502.27247969,0.00035898,120]
[426514221,1782507042000,-1336.76772286,0.000359,2]
[426514217,1782507042000,-265.31,0.000359,98]
[426514209,1782507042000,-230.95,0.00035825,2]
[426514227,1782507042000,-572.38,0.00035973,30]
[426514225,1782507042000,-230.95,0.00035944,2]
[426514224,1782507042000,-230.95,0.00035904,30]
[426514226,1782507042000,-789.6,0.00035973,30]
[426514229,1782507042000,-796.6,0.00035973,30]
[426514228,1782507042000,-627.81,0.00035973,30]
[426514230,1782507042000,-571.34,0.00035973,30]
[426514231,1782507042000,-626.56,0.00035974,30]
[426514233,1782507042000,-500.0,0.00035999,7]
[426514236,1782507042000,-500.0,0.00035999,120]
[426514235,1782507042000,-500.0,0.00035999,120]
[426514234,1782507042000,-500.0,0.00035999,120]
[426514244,1782507042000,-230.95,0.00036023,30]
[426514208,1782507042000,-34481.17430126,0.00035822,2]
[426514223,1782507042000,-800.0,0.000359,13]
[426514206,1782507042000,-230.95,0.00035785,30]
[426514194,1782507042000,-230.95,0.00035626,7]
[426514203,1782507042000,-796.6,0.00035765,2]
[426514185,1782507042000,-500.0,0.00035616,7]
[426514181,1782507042000,-500.0,0.00035616,7]
[426514187,1782507042000,-500.0,0.00035616,7]
[426514182,1782507042000,-500.0,0.00035616,7]
[426514183,1782507042000,-413.05612739,0.00035616,7]
[426514186,1782507042000,-500.0,0.00035616,7]
[426514184,1782507042000,-500.0,0.00035616,7]
[426514189,1782507042000,-500.0,0.00035616,7]
[426514199,1782507042000,-230.95,0.00035745,7]
[426514190,1782507042000,-500.0,0.00035616,7]
[426514193,1782507042000,-161.93776396,0.00035616,2]
[426514192,1782507042000,-500.0,0.00035616,7]
[426514207,1782507042000,-812.32403236,0.0003581,120]
[426514188,1782507042000,-500.0,0.00035616,7]
[426514198,1782507042000,-230.95,0.00035706,2]
[426514197,1782507042000,-457.0,0.00035688,20]
[426514196,1782507042000,-3441.21718377,0.0003568,2]
[426514195,1782507042000,-230.95,0.00035666,30]
[426514201,1782507042000,-572.38,0.00035765,2]
[426514212,1782507042000,-179.76392685,0.00035872,2]
[426514211,1782507042000,-230.95,0.00035864,7]
[426514202,1782507042000,-627.81,0.00035765,2]
[426514200,1782507042000,-789.6,0.00035765,2]
[426514205,1782507042000,-626.56,0.00035766,2]
[426514210,1782507042000,-630.93,0.00035845,120]
[426514204,1782507042000,-571.34,0.00035765,2]
[426514191,1782507042000,-500.0,0.00035616,7]
[426514237,1782507042000,-10720.30707489,0.00036,2]
[426514241,1782507042000,-10000.0,0.00036,30]
[426514239,1782507042000,-5000.0,0.00036,2]
[426514270,1782507042000,-974.7868116,0.00036219,8]
[426514273,1782507042000,-224.65681956,0.0003626,120]
[426514272,1782507042000,-974.7868116,0.00036219,8]
[426514276,1782507042000,-343.495,0.0003626,120]
[426514274,1782507042000,-232.01880002,0.0003626,120]
[426514277,1782507042000,-11600.0,0.000363,13]
[426514275,1782507042000,-343.495,0.0003626,120]
[426514278,1782507042000,-2200.0,0.000363,13]
[426514279,1782507042000,-630.93,0.00036311,120]
[426514280,1782507042000,-974.7868116,0.0003632,8]
[426514283,1782507042000,-500.0,0.00036328,120]
[426514285,1782507042000,-500.0,0.00036328,120]
[426514287,1782507042000,-500.0,0.00036328,7]
[426514286,1782507042000,-1228.24,0.00036328,7]
[426514291,1782507042000,-796.6,0.00036389,2]
[426514288,1782507042000,-1263.64,0.00036329,10]
[426514294,1782507042000,-151.0,0.00036397,2]
[426514292,1782507042000,-571.34,0.00036389,2]
[426514284,1782507042000,-500.0,0.00036328,120]
[426514290,1782507042000,-5000.0,0.00036388,10]
[426514289,1782507042000,-265.31,0.0003634,114]
[426514293,1782507042000,-626.56,0.0003639,2]
[426514297,1782507042000,-151.0,0.00036398,2]
[426514296,1782507042000,-3441.21718377,0.00036397,2]
[426514298,1782507042000,-185.25,0.00036398,2]
[426514299,1782507042000,-2300.0,0.000364,13]
[426514238,1782507042000,-10000.0,0.00036,120]
[426514282,1782507042000,-555.58210477,0.00036328,10]
[426514281,1782507042000,-500.0,0.00036328,120]
[426514295,1782507042000,-151.0,0.00036397,2]
[426514268,1782507042000,-974.7868116,0.00036219,8]
[426514243,1782507042000,-2500.0,0.00036006,10]
[426514271,1782507042000,-974.7868116,0.00036219,8]
[426514240,1782507042000,-38415.00253762,0.00036,30]
[426514242,1782507042000,-160.0,0.00036,120]
[426514245,1782507042000,-230.95,0.00036063,2]
[426514246,1782507042000,-1344.4598568,0.00036075,2]
[426514247,1782507042000,-502.0,0.00036075,4]
[426514248,1782507042000,-2100.1144468,0.00036077,2]
[426514253,1782507042000,-1745.73,0.00036132,10]
[426514256,1782507042000,-350.0,0.00036171,2]
[426514249,1782507042000,-1653.7773766,0.00036078,2]
[426514251,1782507042000,-1300.0,0.000361,13]
[426514250,1782507042000,-7000.0,0.000361,13]
[426514255,1782507042000,-25000.0,0.00036168,10]
[426514252,1782507042000,-230.99,0.00036102,7]
[426514254,1782507042000,-5000.0,0.00036167,10]
[426514269,1782507042000,-974.7868116,0.00036219,8]
[426514267,1782507042000,-974.7868116,0.00036219,8]
[426514263,1782507042000,-2704.0,0.000362,7]
[426514265,1782507042000,-1700.0,0.000362,13]
[426514260,1782507042000,-796.6,0.00036181,7]
[426514264,1782507042000,-9300.0,0.000362,13]
[426514266,1782507042000,-974.7868116,0.00036219,8]
[426514261,1782507042000,-571.34,0.00036181,7]
[426514258,1782507042000,-572.38,0.00036181,7]
[426514262,1782507042000,-626.56,0.00036182,7]
[426514257,1782507042000,-789.6,0.0003618,7]
[426514259,1782507042000,-627.81,0.00036181,7]
[426514371,1782507043000,-2300.0,0.000366,13]
[426514350,1782507043000,-1100.0,0.000365,3]
[426514341,1782507043000,-1100.0,0.000365,3]
[426514340,1782507043000,-1100.0,0.000365,3]
[426514349,1782507043000,-1100.0,0.000365,3]
[426514345,1782507043000,-1100.0,0.000365,3]
[426514337,1782507043000,-1100.0,0.000365,3]
[426514339,1782507043000,-1100.0,0.000365,3]
[426514348,1782507043000,-1100.0,0.000365,3]
[426514343,1782507043000,-1100.0,0.000365,3]
[426514329,1782507043000,-1100.0,0.000365,3]
[426514338,1782507043000,-1100.0,0.000365,3]
[426514346,1782507043000,-1100.0,0.000365,3]
[426514344,1782507043000,-1100.0,0.000365,3]
[426514364,1782507043000,-1100.0,0.000365,3]
[426514360,1782507043000,-1100.0,0.000365,3]
[426514363,1782507043000,-1100.0,0.000365,3]
[426514352,1782507043000,-1100.0,0.000365,3]
[426514361,1782507043000,-1100.0,0.000365,3]
[426514362,1782507043000,-1100.0,0.000365,3]
[426514353,1782507043000,-1100.0,0.000365,3]
[426514354,1782507043000,-1100.0,0.000365,3]
[426514357,1782507043000,-1100.0,0.000365,3]
[426514356,1782507043000,-1100.0,0.000365,3]
[426514355,1782507043000,-1100.0,0.000365,3]
[426514359,1782507043000,-570.0,0.000365,3]
[426514308,1782507043000,-2092.94,0.00036473,10]
[426514367,1782507043000,-350.0,0.00036509,2]
[426514332,1782507043000,-1100.0,0.000365,3]
[426514351,1782507043000,-1100.0,0.000365,3]
[426514328,1782507043000,-1100.0,0.000365,3]
[426514302,1782507043000,-34481.17430126,0.00036411,2]
[426514331,1782507043000,-1100.0,0.000365,3]
[426514307,1782507043000,-1937.67,0.00036454,10]
[426514301,1782507043000,-1007.70133905,0.00036411,2]
[426514300,1782507043000,-400.0,0.000364,13]
[426514305,1782507043000,-1336.76772285,0.0003645,2]
[426514306,1782507043000,-308.89,0.00036452,90]
[426514303,1782507043000,-1130.5,0.0003642,10]
[426514304,1782507043000,-25000.0,0.00036438,10]
[426514310,1782507043000,-305.31360355,0.00036477,2]
[426514318,1782507043000,-1100.0,0.000365,3]
[426514316,1782507043000,-526.12,0.00036499,2]
[426514313,1782507043000,-158.0086147,0.00036498,11]
[426514321,1782507043000,-1100.0,0.000365,3]
[426514315,1782507043000,-500.0,0.00036499,120]
[426514319,1782507043000,-1100.0,0.000365,3]
[426514330,1782507043000,-1100.0,0.000365,3]
[426514317,1782507043000,-2300.0,0.000365,13]
[426514311,1782507043000,-350.0,0.00036481,2]
[426514322,1782507043000,-1100.0,0.000365,3]
[426514312,1782507043000,-503.70805469,0.00036489,2]
[426514314,1782507043000,-163.81019118,0.00036499,7]
[426514309,1782507043000,-150.0,0.00036475,2]
[426514324,1782507043000,-1100.0,0.000365,3]
[426514334,1782507043000,-1100.0,0.000365,3]
[426514323,1782507043000,-1100.0,0.000365,3]
[426514335,1782507043000,-1100.0,0.000365,3]
[426514325,1782507043000,-1100.0,0.000365,3]
[426514336,1782507043000,-1100.0,0.000365,3]
[426514327,1782507043000,-1100.0,0.000365,3]
[426514326,1782507043000,-1100.0,0.000365,3]
[426514333,1782507043000,-1100.0,0.000365,3]
[426514320,1782507043000,-1100.0,0.000365,3]
[426514374,1782507043000,-465.23,0.00036656,120]
[426514342,1782507043000,-1100.0,0.000365,3]
[426514365,1782507043000,-400.0,0.000365,13]
[426514409,1782507043000,-500.0,0.00036887,120]
[426514405,1782507043000,-413.0,0.00036869,2]
[426514411,1782507043000,-500.0,0.00036887,120]
[426514416,1782507043000,-403.84124237,0.00036888,2]
[426514404,1782507043000,-25000.0,0.00036851,10]
[426514414,1782507043000,-21747.03227301,0.00036888,120]
[426514407,1782507043000,-630.93,0.00036887,120]
[426514417,1782507043000,-340.23,0.0003689,10]
[426514408,1782507043000,-534.60856937,0.00036887,120]
[426514412,1782507043000,-1228.24,0.00036887,7]
[426514406,1782507043000,-300.0,0.00036887,10]
[426514410,1782507043000,-500.0,0.00036887,120]
[426514415,1782507043000,-88469.74243107,0.00036888,10]
[426514419,1782507043000,-300.0,0.00036899,10]
[426514413,1782507043000,-500.0,0.00036887,7]
[426514430,1782507043000,-1108.25573211,0.000369,2]
[426514418,1782507043000,-377.99479175,0.00036899,10]
[426514424,1782507043000,-500.0,0.00036899,120]
[426514420,1782507043000,-289.73070214,0.00036899,120]
[426514421,1782507043000,-526.12,0.00036899,2]
[426514422,1782507043000,-500.0,0.00036899,7]
[426514423,1782507043000,-500.0,0.00036899,120]
[426514427,1782507043000,-55571.0,0.000369,30]
[426514425,1782507043000,-500.0,0.00036899,120]
[426514426,1782507043000,-100000.0,0.000369,30]
[426514428,1782507043000,-158.05,0.000369,30]
[426514432,1782507043000,-350.23894008,0.000369,2]
[426514431,1782507043000,-166.75529626,0.000369,2]
[426514433,1782507043000,-974.7868116,0.00036902,9]
[426514369,1782507043000,-25000.0,0.00036577,10]
[426514429,1782507043000,-302.4766664,0.000369,15]
[426514400,1782507043000,-500.0,0.00036805,120]
[426514358,1782507043000,-1100.0,0.000365,3]
[426514397,1782507043000,-800.0,0.000368,13]
[426514399,1782507043000,-500.0,0.00036805,120]
[426514366,1782507043000,-1684.33,0.00036504,10]
[426514368,1782507043000,-3271.0,0.00036512,10]
[426514372,1782507043000,-400.0,0.000366,13]
[426514370,1782507043000,-5000.0,0.00036598,10]
[426514375,1782507043000,-465.17,0.00036656,120]
[426514373,1782507043000,-705.29,0.00036644,10]
[426514377,1782507043000,-465.17,0.00036656,120]
[426514389,1782507043000,-689.72,0.00036749,10]
[426514388,1782507043000,-5000.0,0.00036724,10]
[426514380,1782507043000,-465.17,0.00036656,120]
[426514379,1782507043000,-465.17,0.00036656,120]
[426514378,1782507043000,-465.17,0.00036656,120]
[426514381,1782507043000,-413.0,0.00036662,2]
[426514385,1782507043000,-2300.0,0.000367,13]
[426514376,1782507043000,-465.17,0.00036656,120]
[426514383,1782507043000,-502.0,0.00036694,5]
[426514398,1782507043000,-500.0,0.00036805,7]
[426514396,1782507043000,-2749.0,0.000368,13]
[426514401,1782507043000,-500.0,0.00036805,120]
[426514391,1782507043000,-170.0,0.00036772,7]
[426514392,1782507043000,-212.0,0.00036772,7]
[426514395,1782507043000,-987.3359965,0.00036795,60]
[426514402,1782507043000,-5000.0,0.00036806,10]
[426514403,1782507043000,-3699.9,0.00036838,10]
[426514393,1782507043000,-25000.0,0.00036776,10]
[426514390,1782507043000,-5000.0,0.00036759,10]
[426514384,1782507043000,-457.0,0.00036698,20]
[426514382,1782507043000,-180.84565023,0.00036662,2]
[426514386,1782507043000,-400.0,0.000367,13]
[426514394,1782507043000,-265.31,0.0003678,120]
[426514387,1782507043000,-5000.0,0.00036719,10]
[426514480,1782507044000,-8103.97711354,0.00037,30]
[426514482,1782507044000,-600.0,0.00037,120]
[426514477,1782507044000,-10000.0,0.00037,7]
[426514475,1782507044000,-11092.86,0.00037,7]
[426514478,1782507044000,-10000.0,0.00037,120]
[426514465,1782507044000,-500.0,0.00036999,7]
[426514473,1782507044000,-436.0,0.00037,120]
[426514471,1782507044000,-223.51510099,0.00037,7]
[426514464,1782507044000,-500.0,0.00036999,7]
[426514463,1782507044000,-500.0,0.00036999,7]
[426514466,1782507044000,-32704.97561068,0.00037,30]
[426514481,1782507044000,-3130.9464425,0.00037,30]
[426514474,1782507044000,-11929.36151559,0.00037,120]
[426514476,1782507044000,-10000.0,0.00037,7]
[426514486,1782507044000,-200735.51785695,0.00037,30]
[426514472,1782507044000,-100000.0,0.00037,13]
[426514483,1782507044000,-200.0,0.00037,120]
[426514484,1782507044000,-590.0,0.00037,120]
[426514485,1782507044000,-165.64,0.00037,40]
[426514487,1782507044000,-500.0,0.00037,90]
[426514489,1782507044000,-1000.0,0.00037,30]
[426514491,1782507044000,-15000.0,0.00037,120]
[426514488,1782507044000,-527.01963557,0.00037,120]
[426514490,1782507044000,-1000.0,0.00037,60]
[426514494,1782507044000,-158.67770961,0.00037,3]
[426514503,1782507044000,-288.47,0.00037,120]
[426514502,1782507044000,-4000.0,0.00037,120]
[426514462,1782507044000,-1228.24,0.00036999,7]
[426514479,1782507044000,-5000.0,0.00037,120]
[426514458,1782507044000,-500.0,0.00036999,120]
[426514449,1782507044000,-515.03745043,0.00036999,120]
[426514460,1782507044000,-1228.24,0.00036999,7]
[426514441,1782507044000,-500.0,0.00036999,120]
[426514442,1782507044000,-500.0,0.00036999,120]
[426514436,1782507044000,-468.5988728,0.00036944,2]
[426514437,1782507044000,-369.0076108,0.00036945,2]
[426514444,1782507044000,-500.0,0.00036999,120]
[426514440,1782507044000,-500.0,0.00036999,120]
[426514439,1782507044000,-208.90155238,0.00036999,10]
[426514443,1782507044000,-500.0,0.00036999,120]
[426514434,1782507044000,-426.33954584,0.00036919,22]
[426514438,1782507044000,-163.02,0.00036986,60]
[426514435,1782507044000,-299.9895431,0.00036941,2]
[426514445,1782507044000,-500.0,0.00036999,120]
[426514447,1782507044000,-526.12,0.00036999,2]
[426514448,1782507044000,-526.12,0.00036999,2]
[426514500,1782507044000,-5000.0,0.00037,120]
[426514446,1782507044000,-526.12,0.00036999,2]
[426514454,1782507044000,-500.0,0.00036999,120]
[426514457,1782507044000,-500.0,0.00036999,120]
[426514456,1782507044000,-500.0,0.00036999,120]
[426514452,1782507044000,-500.0,0.00036999,7]
[426514450,1782507044000,-500.0,0.00036999,7]
[426514451,1782507044000,-500.0,0.00036999,7]
[426514455,1782507044000,-500.0,0.00036999,120]
[426514453,1782507044000,-514.51802336,0.00036999,120]
[426514467,1782507044000,-365.0,0.00037,2]
[426514459,1782507044000,-500.0,0.00036999,120]
[426514461,1782507044000,-1228.24,0.00036999,7]
[426514468,1782507044000,-318.59645755,0.00037,30]
[426514470,1782507044000,-4500.0,0.00037,2]
[426514469,1782507044000,-169.20323627,0.00037,2]
[426514501,1782507044000,-3000.0,0.00037,120]
[426514492,1782507044000,-15000.0,0.00037,120]
[426514495,1782507044000,-140000.0,0.00037,90]
[426514535,1782507044000,-350.23894007,0.00037008,2]
[426514534,1782507044000,-1108.25573211,0.00037008,2]
[426514533,1782507044000,-303.18503716,0.00037001,14]
[426514536,1782507044000,-3000.0,0.00037015,30]
[426514539,1782507044000,-196.62,0.00037018,60]
[426514540,1782507044000,-1866.28087128,0.00037049,120]
[426514545,1782507044000,-151.56702897,0.00037052,39]
[426514537,1782507044000,-954.21,0.00037015,30]
[426514547,1782507044000,-196.62,0.00037068,60]
[426514542,1782507044000,-49991.0,0.0003705,120]
[426514538,1782507044000,-204.66,0.00037016,60]
[426514544,1782507044000,-2228.0,0.0003705,120]
[426514541,1782507044000,-3720.0,0.0003705,120]
[426514543,1782507044000,-49991.0,0.0003705,120]
[426514525,1782507044000,-241.32824598,0.00037,30]
[426514546,1782507044000,-204.66,0.00037066,60]
[426514559,1782507044000,-500.0,0.00037099,120]
[426514560,1782507044000,-500.0,0.00037099,120]
[426514550,1782507044000,-503.70805469,0.0003709,2]
[426514493,1782507044000,-15800.0,0.00037,120]
[426514551,1782507044000,-184.87727102,0.0003709,32]
[426514552,1782507044000,-379.74053276,0.00037093,120]
[426514556,1782507044000,-500.0,0.00037098,7]
[426514553,1782507044000,-500.0,0.00037098,120]
[426514557,1782507044000,-500.0,0.00037099,120]
[426514554,1782507044000,-500.0,0.00037098,120]
[426514555,1782507044000,-1228.24,0.00037098,7]
[426514558,1782507044000,-500.0,0.00037099,120]
[426514561,1782507044000,-500.0,0.00037099,120]
[426514562,1782507044000,-500.0,0.00037099,120]
[426514549,1782507044000,-503.70805469,0.0003709,2]
[426514526,1782507044000,-241.32824598,0.00037,60]
[426514548,1782507044000,-185.0,0.0003709,120]
[426514531,1782507044000,-34481.17430126,0.00037,2]
[426514504,1782507044000,-15000.83,0.00037,30]
[426514519,1782507044000,-11534.62477375,0.00037,30]
[426514496,1782507044000,-1000.0,0.00037,80]
[426514497,1782507044000,-2000.3151545,0.00037,2]
[426514505,1782507044000,-5127.59246933,0.00037,120]
[426514498,1782507044000,-3000.0,0.00037,120]
[426514506,1782507044000,-800.0,0.00037,45]
[426514508,1782507044000,-800.0,0.00037,45]
[426514516,1782507044000,-2108.0,0.00037,120]
[426514513,1782507044000,-594.89352566,0.00037,120]
[426514514,1782507044000,-384.54193532,0.00037,120]
[426514517,1782507044000,-8503.0,0.00037,117]
[426514511,1782507044000,-20901.37578219,0.00037,30]
[426514512,1782507044000,-5000.0,0.00037,4]
[426514499,1782507044000,-5000.0,0.00037,120]
[426514515,1782507044000,-161.07424051,0.00037,120]
[426514521,1782507044000,-241.32824598,0.00037,30]
[426514509,1782507044000,-2012.35,0.00037,37]
[426514524,1782507044000,-241.32824598,0.00037,30]
[426514528,1782507044000,-241.32824598,0.00037,60]
[426514529,1782507044000,-241.32824598,0.00037,60]
[426514527,1782507044000,-241.32824598,0.00037,60]
[426514520,1782507044000,-241.32824598,0.00037,30]
[426514532,1782507044000,-1336.76772285,0.00037,2]
[426514522,1782507044000,-241.32824598,0.00037,30]
[426514530,1782507044000,-1007.70133905,0.00037,2]
[426514510,1782507044000,-400.98,0.00037,90]
[426514518,1782507044000,-27411.132521,0.00037,14]
[426514507,1782507044000,-193.3,0.00037,30]
[426514523,1782507044000,-241.32824598,0.00037,30]
[426514586,1782507045000,-526.12,0.00037099,2]
[426514591,1782507045000,-526.12,0.00037099,2]
[426514595,1782507045000,-500.0,0.00037099,7]
[426514594,1782507045000,-526.21797308,0.00037099,2]
[426514589,1782507045000,-526.12,0.00037099,2]
[426514592,1782507045000,-526.12,0.00037099,2]
[426514596,1782507045000,-500.0,0.00037099,7]
[426514598,1782507045000,-500.0,0.00037099,7]
[426514606,1782507045000,-500.0,0.00037099,120]
[426514597,1782507045000,-500.0,0.00037099,7]
[426514590,1782507045000,-526.12,0.00037099,2]
[426514601,1782507045000,-500.0,0.00037099,7]
[426514612,1782507045000,-500.0,0.00037099,120]
[426514604,1782507045000,-495.34254854,0.00037099,7]
[426514565,1782507045000,-500.0,0.00037099,120]
[426514605,1782507045000,-500.0,0.00037099,120]
[426514602,1782507045000,-500.0,0.00037099,7]
[426514582,1782507045000,-526.12,0.00037099,2]
[426514593,1782507045000,-526.12,0.00037099,2]
[426514584,1782507045000,-526.12,0.00037099,2]
[426514574,1782507045000,-500.0,0.00037099,120]
[426514585,1782507045000,-526.12,0.00037099,2]
[426514600,1782507045000,-500.0,0.00037099,7]
[426514563,1782507045000,-500.0,0.00037099,120]
[426514566,1782507045000,-500.0,0.00037099,120]
[426514564,1782507045000,-500.0,0.00037099,120]
[426514567,1782507045000,-500.0,0.00037099,120]
[426514568,1782507045000,-500.0,0.00037099,120]
[426514575,1782507045000,-500.0,0.00037099,120]
[426514569,1782507045000,-500.0,0.00037099,120]
[426514572,1782507045000,-500.0,0.00037099,120]
[426514583,1782507045000,-526.12,0.00037099,2]
[426514571,1782507045000,-500.0,0.00037099,120]
[426514570,1782507045000,-500.0,0.00037099,120]
[426514587,1782507045000,-526.12,0.00037099,2]
[426514579,1782507045000,-526.12,0.00037099,2]
[426514577,1782507045000,-202.37789069,0.00037099,120]
[426514576,1782507045000,-500.0,0.00037099,120]
[426514588,1782507045000,-526.12,0.00037099,2]
[426514581,1782507045000,-526.12,0.00037099,2]
[426514578,1782507045000,-526.12,0.00037099,2]
[426514580,1782507045000,-526.12,0.00037099,2]
[426514573,1782507045000,-500.0,0.00037099,120]
[426514613,1782507045000,-500.0,0.00037099,120]
[426514599,1782507045000,-500.0,0.00037099,7]
[426514610,1782507045000,-500.0,0.00037099,120]
[426514627,1782507045000,-1228.24,0.00037099,7]
[426514632,1782507045000,-500.0,0.00037099,7]
[426514630,1782507045000,-500.0,0.00037099,7]
[426514636,1782507045000,-178629.59031615,0.000371,2]
[426514640,1782507045000,-2863.14,0.000371,120]
[426514643,1782507045000,-155.6657,0.000371,60]
[426514639,1782507045000,-3101.03,0.000371,120]
[426514642,1782507045000,-2863.14,0.000371,120]
[426514641,1782507045000,-2863.14,0.000371,120]
[426514644,1782507045000,-21680.3383,0.000371,120]
[426514647,1782507045000,-214.06813146,0.000371,60]
[426514646,1782507045000,-1652.2713,0.000371,60]
[426514648,1782507045000,-486483.16814344,0.000371,120]
[426514645,1782507045000,-299.67075952,0.000371,60]
[426514651,1782507045000,-1608.16224905,0.000371,120]
[426514652,1782507045000,-2242.27215715,0.000371,120]
[426514650,1782507045000,-9080.37604949,0.000371,120]
[426514649,1782507045000,-9525.13420006,0.000371,120]
[426514611,1782507045000,-500.0,0.00037099,120]
[426514635,1782507045000,-647.53,0.00037099,7]
[426514633,1782507045000,-1228.40383952,0.00037099,7]
[426514607,1782507045000,-500.0,0.00037099,120]
[426514638,1782507045000,-3101.036,0.000371,120]
[426514629,1782507045000,-1228.24,0.00037099,7]
[426514603,1782507045000,-500.0,0.00037099,7]
[426514608,1782507045000,-500.0,0.00037099,120]
[426514609,1782507045000,-500.0,0.00037099,120]
[426514615,1782507045000,-323.44542035,0.00037099,120]
[426514614,1782507045000,-500.0,0.00037099,120]
[426514622,1782507045000,-1228.24,0.00037099,7]
[426514621,1782507045000,-1228.24,0.00037099,7]
[426514616,1782507045000,-1228.24,0.00037099,7]
[426514626,1782507045000,-1228.24,0.00037099,7]
[426514623,1782507045000,-1228.24,0.00037099,7]
[426514618,1782507045000,-1228.24,0.00037099,7]
[426514631,1782507045000,-1228.24,0.00037099,7]
[426514620,1782507045000,-1228.24,0.00037099,7]
[426514637,1782507045000,-3101.036,0.000371,120]
[426514628,1782507045000,-500.0,0.00037099,7]
[426514634,1782507045000,-500.0,0.00037099,7]
[426514625,1782507045000,-1228.24,0.00037099,7]